bitfinex/quotes_BTCUSD_20250215
["timestamp","ask_amount","ask_price","bid_price","bid_amount"]
[1739623768043,0.153444,97755.0,97751.0,0.0001065]
[1739623768245,0.153444,97755.0,97752.0,0.001]
[1739623768558,0.153444,97755.0,97752.0,0.00511278]
[1739623769677,0.153444,97755.0,97752.0,0.00411278]
[1739623769921,0.153444,97755.0,97754.0,0.001]
[1739623770208,0.153444,97755.0,97752.0,0.00411278]
[1739623770344,0.153444,97755.0,97754.0,0.0041126]
[1739623770565,0.00127874,97761.0,97753.0,0.00411269]
[1739623770762,0.153447,97753.0,97752.0,0.001]
[1739623770963,0.12202366,97762.0,97754.0,0.001]
[1739623771319,0.153444,97755.0,97754.0,0.001]
[1739623771679,0.153444,97755.0,97754.0,0.0051126]
[1739623772094,0.153444,97755.0,97754.0,0.001]
[1739623772299,0.153444,97755.0,97754.0,0.0051126]
[1739623772493,0.153444,97755.0,97754.0,0.001]
[1739623772696,0.00127874,97756.0,97754.0,0.0041126]
[1739623772879,0.204593,97755.0,97754.0,0.001]
[1739623773213,0.204593,97755.0,97752.0,0.001]
[1739623773426,0.153449,97752.0,97751.0,0.0001065]
[1739623773968,0.153449,97752.0,97751.0,0.0042191]
[1739623774168,0.12202366,97762.0,97751.0,0.0001065]
[1739623774361,0.153448,97753.0,97752.0,0.001]
[1739623775689,0.153448,97753.0,97752.0,0.0041126]
[1739623776792,0.153448,97753.0,97752.0,0.0061126]
[1739623778223,0.00022366,97755.0,97752.0,0.0061126]
[1739623778423,0.00022366,97755.0,97752.0,0.1595616]
[1739623778643,0.00022366,97755.0,97752.0,0.155449]
[1739623778850,0.00022366,97755.0,97753.0,0.00413454]
[1739623779362,0.00022366,97755.0,97753.0,0.15758154]
[1739623780067,0.00022366,97755.0,97753.0,0.00413454]
[1739623780513,0.00022366,97755.0,97753.0,0.00513454]
[1739623783645,0.00022366,97755.0,97754.0,0.153446]
[1739623784145,0.00022366,97755.0,97754.0,0.15758045]
[1739623784942,0.00022366,97762.0,97761.0,0.153435]
[1739623785321,0.00022366,97762.0,97761.0,0.15761406]
[1739623786325,0.00322366,97762.0,97761.0,0.15761406]
[1739623786833,0.00522366,97762.0,97761.0,0.15761406]
[1739623794867,0.00222366,97762.0,97761.0,0.15761406]
[1739623795267,0.00222366,97762.0,97761.0,0.15961406]
[1739623795474,0.00222366,97762.0,97761.0,0.18261406]
[1739623795702,0.00022366,97762.0,97761.0,0.30721406]
[1739623795897,0.00022366,97762.0,97761.0,0.30921406]
[1739623796144,0.00022366,97762.0,97761.0,0.31221406]
[1739623797120,0.00022366,97762.0,97761.0,0.31221406]
[1739623798982,0.00022366,97762.0,97761.0,0.41471771]
[1739623801132,0.00022366,97762.0,97761.0,0.61723771]
[1739623809489,0.00022366,97762.0,97761.0,0.38813406]
[1739623811286,0.00022366,97762.0,97761.0,0.38613406]
[1739623811734,0.00022366,97762.0,97761.0,0.38813406]
[1739623812548,0.00022366,97762.0,97761.0,0.38513406]
[1739623812771,0.00022366,97762.0,97761.0,0.38813406]
[1739623823087,0.00022366,97762.0,97761.0,0.36513406]
[1739623824157,0.00022366,97762.0,97761.0,0.36013406]
[1739623824342,0.15365666,97762.0,97761.0,0.20969906]
[1739623824553,0.15365666,97762.0,97761.0,0.20669906]
[1739623825296,0.00022366,97762.0,97761.0,0.20669906]
[1739623825909,0.00022366,97762.0,97761.0,0.20869906]
[1739623826029,0.00022366,97762.0,97761.0,0.21069906]
[1739623826237,0.00022366,97762.0,97761.0,0.20669906]
[1739623826701,0.00322366,97762.0,97761.0,0.20669906]
[1739623830344,0.00322366,97762.0,97761.0,0.36013406]
[1739623832393,0.00022366,97762.0,97761.0,0.36013406]
[1739623832738,0.00122366,97762.0,97761.0,0.36013406]
[1739623832962,0.19826532,97772.0,97765.0,0.153428]
[1739623833137,0.19826532,97772.0,97766.0,0.00458149]
[1739623833707,0.04484732,97772.0,97766.0,0.00458149]
[1739623834113,0.04884732,97772.0,97767.0,0.153425]
[1739623834328,0.04884732,97772.0,97768.0,0.153424]
[1739623834329,0.05184732,97772.0,97768.0,0.153424]
[1739623834483,0.05184732,97772.0,97768.0,0.15800531]
[1739623834685,0.05184732,97772.0,97768.0,0.00458131]
[1739623835044,0.05184732,97772.0,97767.0,0.153425]
[1739623835205,0.04784732,97772.0,97765.0,0.204571]
[1739623835390,0.04784732,97772.0,97768.0,0.15800531]
[1739623835725,0.04884732,97772.0,97768.0,0.153424]
[1739623835902,0.05184732,97772.0,97769.0,0.00458122]
[1739623836426,0.04784732,97772.0,97770.0,0.00458113]
[1739623836635,0.04784732,97772.0,97768.0,0.153424]
[1739623836636,0.05284732,97772.0,97768.0,0.153424]
[1739623836837,0.04984732,97772.0,97771.0,0.15800004]
[1739623837038,0.04684732,97772.0,97771.0,0.153419]
[1739623837262,0.04684732,97772.0,97771.0,0.15800004]
[1739623837543,0.04684732,97772.0,97771.0,0.00458104]
[1739623837544,0.05184732,97772.0,97771.0,0.00458104]
[1739623837739,0.007,97772.0,97771.0,0.15800004]
[1739623837941,0.005,97772.0,97771.0,0.21476004]
[1739623838564,0.3232,97781.0,97779.0,0.153407]
[1739623838724,0.32333031,97781.0,97780.0,0.153405]
[1739623838923,0.32333031,97781.0,97780.0,0.00457453]
[1739623839357,0.32333031,97781.0,97780.0,0.153405]
[1739623839707,0.32333031,97781.0,97780.0,0.15779197]
[1739623840307,0.33033031,97781.0,97780.0,0.15779197]
[1739623840648,0.33733031,97781.0,97780.0,0.15779197]
[1739623840932,0.33033031,97781.0,97780.0,0.15779197]
[1739623841350,0.33333031,97781.0,97780.0,0.15779197]
[1739623841749,0.32633031,97781.0,97780.0,0.15779197]
[1739623842478,0.33333031,97781.0,97780.0,0.15879197]
[1739623842897,0.33333031,97781.0,97780.0,0.15779197]
[1739623843108,0.32633031,97781.0,97780.0,0.15779197]
[1739623843308,0.32733031,97781.0,97780.0,0.15779197]
[1739623843516,0.00413031,97781.0,97780.0,0.15779197]
[1739623844145,0.00113031,97781.0,97780.0,0.15779197]
[1739623844961,0.00113031,97781.0,97780.0,0.22699197]
[1739623845379,0.00113031,97781.0,97780.0,0.32949562]
[1739623847529,0.00113031,97781.0,97780.0,0.47949562]
[1739623847871,0.00113031,97781.0,97780.0,0.55629562]
[1739623848274,0.00013031,97781.0,97780.0,0.55629562]
[1739623849499,0.00013031,97781.0,97780.0,5.32773562]
[1739623849713,0.00013031,97781.0,97780.0,2.81789562]
[1739623850659,0.00013031,97781.0,97780.0,2.81889562]
[1739623851969,0.00013031,97781.0,97780.0,2.81789562]
[1739623852369,0.00213031,97781.0,97780.0,2.82889562]
[1739623852574,0.00113031,97781.0,97780.0,2.82389562]
[1739623852982,0.00113031,97781.0,97780.0,2.82289562]
[1739623854455,0.00213031,97781.0,97780.0,2.82889562]
[1739623855374,0.00213031,97781.0,97780.0,0.74309562]
[1739623855530,0.00213031,97781.0,97780.0,0.72909562]
[1739623856685,0.00223681,97781.0,97780.0,0.72909562]
[1739623857483,0.00223681,97781.0,97780.0,0.56729562]
[1739623857678,0.00223681,97781.0,97780.0,0.78169562]
[1739623857887,0.00223681,97781.0,97780.0,0.76973562]
[1739623859010,0.00223681,97781.0,97780.0,1.20713562]
[1739623864325,0.00223681,97781.0,97780.0,1.53183562]
[1739623868769,0.0002,97809.0,97787.0,0.303394]
[1739623868970,0.0002,97809.0,97787.0,0.42889765]
[1739623869172,0.0002,97809.0,97787.0,0.43321078]
[1739623869949,0.0002,97809.0,97787.0,0.43621078]
[1739623870961,0.0002,97809.0,97787.0,0.44021078]
[1739623872204,0.0002,97809.0,97787.0,0.64265078]
[1739623874308,5e-07,97788.0,97787.0,1.09285078]
[1739623874483,0.0002,97809.0,97808.0,0.405561]
[1739623874694,0.00027552,97809.0,97808.0,5.27950465]
[1739623875017,0.00027552,97809.0,97808.0,0.4330357]
[1739623875781,0.00027552,97809.0,97808.0,0.48144496]
[1739623875990,0.00127552,97809.0,97808.0,0.48744496]
[1739623876967,0.00127552,97809.0,97808.0,0.68988496]
[1739623877338,0.00127552,97809.0,97808.0,0.69588496]
[1739623877524,0.00127552,97809.0,97808.0,0.26702031]
[1739623877693,0.00127552,97809.0,97808.0,0.25674122]
[1739623877907,0.12787552,97809.0,97808.0,0.25674122]
[1739623878466,0.12787552,97809.0,97808.0,0.25074122]
[1739623878662,0.12687552,97809.0,97808.0,0.24474122]
[1739623878869,0.12687552,97809.0,97808.0,0.24574122]
[1739623879075,0.12787552,97809.0,97808.0,0.25174122]
[1739623879285,0.12798202,97809.0,97808.0,0.25074122]
[1739623879490,0.00038202,97809.0,97808.0,0.24474122]
[1739623879746,0.00238202,97809.0,97808.0,0.24474122]
[1739623880364,0.00038202,97809.0,97808.0,0.20661105]
[1739623880559,0.00238202,97809.0,97808.0,0.20661105]
[1739623881237,0.00238202,97809.0,97808.0,0.22961105]
[1739623881525,0.00338202,97809.0,97808.0,0.3321147]
[1739623881740,0.00338202,97809.0,97808.0,0.4821147]
[1739623881933,0.00138202,97809.0,97808.0,0.4821147]
[1739623882136,0.00038202,97809.0,97808.0,0.4821147]
[1739623882294,0.00238202,97809.0,97808.0,0.4821147]
[1739623882494,0.00238202,97809.0,97808.0,0.4831147]
[1739623882737,0.00038202,97809.0,97808.0,0.4831147]
[1739623882962,0.00038202,97809.0,97808.0,0.4841147]
[1739623883711,0.00038202,97809.0,97808.0,0.4831147]
[1739623884142,0.00038202,97809.0,97808.0,0.4841147]
[1739623884741,0.00038202,97809.0,97808.0,0.4831147]
[1739623884946,0.00038202,97809.0,97808.0,0.4821147]
[1739623885308,0.00038202,97809.0,97808.0,0.4881147]
[1739623886055,0.00038202,97809.0,97808.0,0.6414757]
[1739623902547,0.00038202,97809.0,97808.0,5.4129157]
[1739623902705,0.00038202,97809.0,97808.0,4.8893757]
[1739623903773,0.00038202,97809.0,97808.0,2.4147757]
[1739623903981,0.00038202,97809.0,97808.0,2.2747757]
[1739623905503,0.00038202,97809.0,97808.0,2.0975757]
[1739623908242,0.00038202,97809.0,97808.0,0.6414757]
[1739623915897,0.0805,97826.0,97820.0,0.07714998]
[1739623916082,0.0805,97826.0,97825.0,0.153335]
[1739623916492,0.0805,97826.0,97825.0,0.15743866]
[1739623917195,0.0835,97826.0,97825.0,0.15743866]
[1739623917416,0.0855,97826.0,97825.0,0.15743866]
[1739623919700,0.005,97826.0,97825.0,0.15743866]
[1739623926519,0.005,97826.0,97825.0,0.00410366]
[1739623926941,0.005,97826.0,97825.0,0.153335]
[1739623927142,0.005,97826.0,97825.0,0.1574362]
[1739623927351,0.005,97826.0,97825.0,0.0041012]
[1739623927554,0.005,97826.0,97822.0,0.204452]
[1739623927755,0.005,97826.0,97825.0,0.1574362]
[1739623927968,0.005,97826.0,97825.0,0.153335]
[1739623928178,0.005,97826.0,97825.0,0.1574362]
[1739623928825,0.002,97826.0,97825.0,0.1574362]
[1739623929026,0.004,97826.0,97825.0,0.1574362]
[1739623929600,0.002,97826.0,97825.0,0.1574362]
[1739623929794,0.005,97826.0,97825.0,0.1574362]
[1739623938476,0.005,97826.0,97825.0,0.0041012]
[1739623938477,0.158333,97826.0,97825.0,0.0041012]
[1739623938687,0.291233,97826.0,97825.0,0.0041012]
[1739623938900,0.153341,97821.0,97820.0,0.07714998]
[1739623939104,0.236541,97821.0,97820.0,0.07714998]
[1739623940269,0.33904465,97821.0,97820.0,0.07714998]
[1739623940833,0.34204465,97821.0,97820.0,0.07714998]
[1739623941263,0.33904465,97821.0,97820.0,0.07714998]
[1739623941441,0.39174465,97821.0,97820.0,0.07714998]
[1739623941639,0.39374465,97821.0,97820.0,0.07714998]
[1739623942034,0.39174465,97821.0,97820.0,0.07714998]
[1739623942250,0.1359,97821.0,97820.0,0.07714998]
[1739623942459,0.293241,97821.0,97820.0,0.07714998]
[1739623946135,0.1399,97821.0,97820.0,0.07714998]
[1739623946353,0.0567,97821.0,97820.0,0.07714998]
[1739623946527,0.0567,97821.0,97820.0,0.23460844]
[1739623946737,0.0567,97821.0,97820.0,0.08126644]
[1739623946883,0.0567,97821.0,97820.0,0.23460844]
[1739623948859,0.210041,97821.0,97820.0,0.08126644]
[1739623949314,0.210041,97821.0,97820.0,0.07714998]
[1739623950170,0.210041,97821.0,97820.0,0.08126644]
[1739623952331,0.0567,97821.0,97820.0,0.08126644]
[1739623953034,0.0567,97821.0,97820.0,0.23460844]
[1739623953277,0.007,97821.0,97820.0,0.23460844]
[1739623954657,0.007,97821.0,97820.0,0.08126644]
[1739623955381,0.007,97821.0,97820.0,0.23460844]
[1739623964282,0.0071065,97821.0,97820.0,0.23460844]
[1739623968918,0.0071065,97821.0,97820.0,0.31570844]
[1739623970069,0.0031065,97821.0,97820.0,0.31570844]
[1739623970271,0.0031065,97821.0,97820.0,0.31670844]
[1739623971028,0.0001065,97821.0,97820.0,0.31670844]
[1739623971185,0.0001065,97821.0,97820.0,0.31770844]
[1739623976095,0.0001065,97821.0,97820.0,0.34070844]
[1739623980057,0.0001065,97821.0,97820.0,0.25960844]
[1739623984454,0.0001065,97821.0,97820.0,0.46200844]
[1739623990785,0.0001065,97821.0,97820.0,0.56451209]
[1739623996861,0.0001065,97821.0,97820.0,0.46200844]
[1739623998429,0.0001065,97821.0,97820.0,0.43900844]
[1739623998648,0.0001065,97821.0,97820.0,0.28566644]
[1739623998847,0.0001065,97821.0,97820.0,0.43900844]
[1739624004419,0.0001065,97821.0,97820.0,0.46200844]
[1739624007170,0.0001065,97821.0,97820.0,0.56451209]
[1739624007388,0.0001065,97821.0,97820.0,0.71451209]
[1739624008626,0.0001065,97821.0,97820.0,2.28651209]
[1739624008828,0.0001065,97821.0,97820.0,3.91181209]
[1739624009025,0.0001065,97821.0,97820.0,3.65231209]
[1739624009224,0.0001065,97821.0,97820.0,3.65131209]
[1739624009427,0.0001065,97821.0,97820.0,3.65031209]
[1739624009647,0.0001065,97821.0,97820.0,0.84421209]
[1739624010051,0.0001065,97821.0,97820.0,0.84121209]
[1739624010404,0.0011065,97821.0,97820.0,0.85121209]
[1739624011571,0.0011065,97821.0,97820.0,0.84821209]
[1739624011887,0.0021065,97821.0,97820.0,0.85421209]
[1739624015488,0.0021065,97821.0,97820.0,0.72551209]
[1739624015700,0.0011065,97821.0,97820.0,0.71951209]
[1739624015885,0.0001065,97821.0,97820.0,0.71251209]
[1739624016087,0.0011065,97821.0,97820.0,0.71851209]
[1739624016288,0.0021065,97821.0,97820.0,0.72551209]
[1739624016705,0.0011065,97821.0,97820.0,0.71851209]
[1739624018029,0.0011065,97821.0,97820.0,0.72551209]
[1739624018165,0.0021065,97821.0,97820.0,0.72551209]
[1739624018616,0.0011065,97821.0,97820.0,0.71851209]
[1739624019146,0.0021065,97821.0,97820.0,0.72551209]
[1739624023629,0.0021065,97821.0,97820.0,0.62300844]
[1739624024769,0.0021065,97821.0,97820.0,0.47300844]
[1739624025174,0.0021065,97821.0,97820.0,0.29666644]
[1739624025358,0.0021065,97821.0,97820.0,0.45000844]
[1739624025755,0.0011065,97821.0,97820.0,0.44300844]
[1739624026029,0.0001065,97821.0,97820.0,0.43700844]
[1739624026221,0.0001065,97821.0,97820.0,0.44500844]
[1739624028240,0.0001065,97821.0,97820.0,0.44100844]
[1739624028653,0.0001065,97821.0,97820.0,0.44600844]
[1739624028851,0.0001065,97821.0,97820.0,0.46500844]
[1739624029053,0.0001065,97821.0,97820.0,0.56251209]
[1739624029252,0.0001065,97821.0,97820.0,0.56451209]
[1739624029460,0.0001065,97821.0,97820.0,0.56651209]
[1739624031561,0.0001065,97821.0,97820.0,0.56451209]
[1739624031713,0.0001065,97821.0,97820.0,0.56651209]
[1739624032042,0.0001065,97821.0,97820.0,0.56451209]
[1739624032347,0.0001065,97821.0,97820.0,0.56651209]
[1739624038006,0.0001065,97821.0,97820.0,0.56451209]
[1739624038412,0.0001065,97821.0,97820.0,0.56651209]
[1739624038564,0.0001065,97821.0,97820.0,0.56451209]
[1739624038988,0.0001065,97821.0,97820.0,0.56651209]
[1739624043992,0.0001065,97821.0,97820.0,0.28766644]
[1739624044191,0.0001065,97821.0,97820.0,0.44100844]
[1739624045048,0.0001065,97821.0,97820.0,0.43900844]
[1739624045467,0.0001065,97821.0,97820.0,0.43800844]
[1739624045681,0.0001065,97821.0,97820.0,0.43900844]
[1739624048274,0.15332,97834.0,97826.0,0.153332]
[1739624048455,0.15332,97834.0,97828.0,0.15333]
[1739624048658,0.99243324,97835.0,97823.0,0.023]
[1739624048884,0.99243324,97835.0,97834.0,0.15332]
[1739624049239,0.99243324,97835.0,97834.0,0.15719403]
[1739624050058,0.99543324,97835.0,97834.0,0.15719403]
[1739624051110,0.99943324,97835.0,97834.0,0.15719403]
[1739624053586,0.99943324,97835.0,97834.0,0.15719403]
[1739624056252,0.99953974,97835.0,97834.0,0.15719403]
[1739624059873,0.99953974,97835.0,97834.0,0.00387403]
[1739624060083,0.99953974,97835.0,97833.0,0.153322]
[1739624060306,0.99953974,97835.0,97834.0,0.00387097]
[1739624061124,0.99553974,97835.0,97829.0,0.204438]
[1739624061349,0.99953974,97835.0,97829.0,0.204438]
[1739624061683,0.99953974,97835.0,97832.0,0.153323]
[1739624061928,0.99553974,97835.0,97830.0,0.00386632]
[1739624062170,0.99253974,97835.0,97831.0,0.153325]
[1739624062601,0.99553974,97835.0,97832.0,0.00386614]
[1739624062812,0.99253974,97835.0,97832.0,0.00386614]
[1739624063023,0.99453974,97835.0,97832.0,0.00386614]
[1739624063231,0.99853974,97835.0,97832.0,0.00386614]
[1739624063436,0.99653974,97835.0,97832.0,0.00386614]
[1739624063674,0.99453974,97835.0,97832.0,0.00386614]
[1739624064080,0.99553974,97835.0,97832.0,0.00386614]
[1739624065643,0.00127771,97834.0,97832.0,0.00386614]
[1739624065841,0.153322,97833.0,97827.0,0.15333]
[1739624066075,0.00127771,97834.0,97831.0,0.153325]
[1739624066233,0.00127771,97834.0,97829.0,0.153327]
[1739624066445,0.00127771,97834.0,97830.0,0.00386973]
[1739624066644,0.99753974,97835.0,97830.0,0.153326]
[1739624066645,0.99253974,97835.0,97830.0,0.153326]
[1739624066870,0.003,97834.0,97831.0,0.00386964]
[1739624067069,0.001,97833.0,97829.0,0.153328]
[1739624067284,0.003,97834.0,97830.0,0.00386974]
[1739624067464,0.00127771,97834.0,97830.0,0.153327]
[1739624067663,0.00527771,97834.0,97831.0,0.00386965]
[1739624068067,0.00527771,97834.0,97832.0,0.00022365]
[1739624068264,0.00527771,97834.0,97833.0,0.00386947]
[1739624068938,0.004,97834.0,97833.0,0.00386947]
[1739624069203,0.002,97834.0,97833.0,0.15719147]
[1739624069404,0.004,97834.0,97833.0,0.15719147]
[1739624069613,0.003,97834.0,97833.0,0.153322]
[1739624069783,0.003,97834.0,97833.0,0.0038702]
[1739624070173,0.007,97834.0,97832.0,0.15354665]
[1739624070373,0.007,97834.0,97833.0,0.0038702]
[1739624070757,0.007,97834.0,97832.0,0.00022365]
[1739624071165,0.99253974,97835.0,97832.0,0.00022365]
[1739624072244,0.99253974,97835.0,97832.0,0.15354665]
[1739624072447,0.99253974,97835.0,97833.0,0.0041202]
[1739624072653,0.002,97834.0,97833.0,0.0041202]
[1739624072881,0.99253974,97835.0,97833.0,0.0606402]
[1739624073089,0.003,97834.0,97833.0,0.1574422]
[1739624073518,0.99253974,97835.0,97834.0,0.15332]
[1739624073930,0.99253974,97835.0,97834.0,0.15719011]
[1739624075620,0.99653974,97835.0,97834.0,0.15719011]
[1739624076029,0.99953974,97835.0,97834.0,0.15719011]
[1739624080418,0.99553974,97835.0,97834.0,0.15719011]
[1739624080826,0.99453974,97835.0,97834.0,0.15719011]
[1739624081278,0.99553974,97835.0,97834.0,0.15719011]
[1739624081485,0.99553974,97835.0,97834.0,0.18019011]
[1739624082102,0.99353974,97835.0,97834.0,0.18019011]
[1739624082319,0.99553974,97835.0,97834.0,0.18019011]
[1739624082685,0.99453974,97835.0,97834.0,0.18019011]
[1739624083035,0.99253974,97835.0,97834.0,0.18119011]
[1739624083266,0.99253974,97835.0,97834.0,0.18219011]
[1739624086082,0.91541274,97835.0,97834.0,0.28469376]
[1739624089666,0.90238657,97835.0,97834.0,0.43469376]
[1739624089906,0.90238657,97835.0,97834.0,0.51089376]
[1739624092909,0.90238657,97835.0,97834.0,0.51111741]
[1739624093570,0.90229235,97835.0,97834.0,0.51111741]
[1739624096319,0.90229235,97835.0,97834.0,5.32995741]
[1739624097134,0.90229235,97835.0,97834.0,4.85121741]
[1739624097428,0.90229235,97835.0,97834.0,2.49141741]
[1739624097660,0.90329235,97835.0,97834.0,2.50341741]
[1739624097845,0.90429235,97835.0,97834.0,2.50341741]
[1739624098199,0.90329235,97835.0,97834.0,0.74391741]
[1739624098609,0.90429235,97835.0,97834.0,0.74991741]
[1739624098810,0.90329235,97835.0,97834.0,0.74391741]
[1739624099167,0.90329235,97835.0,97834.0,0.74991741]
[1739624100680,0.90329235,97835.0,97834.0,0.72891741]
[1739624102156,0.90329235,97835.0,97834.0,1.05361741]
[1739624102355,0.90329235,97835.0,97834.0,0.76961741]
[1739624105411,0.90329235,97835.0,97834.0,0.76948842]
[1739624105878,0.90329235,97835.0,97834.0,0.31928477]
[1739624106164,0.90329235,97835.0,97834.0,0.16941376]
[1739624106931,0.90229235,97835.0,97834.0,0.15741376]
[1739624107338,0.90229235,97835.0,97834.0,0.01009376]
[1739624107540,0.90229235,97835.0,97834.0,0.16041376]
[1739624107704,0.90229235,97835.0,97834.0,0.15354365]
[1739624107864,0.90229235,97835.0,97834.0,0.15838534]
[1739624108077,0.90229235,97835.0,97834.0,0.15938534]
[1739624108662,0.90229235,97835.0,97834.0,0.15838534]
[1739624109243,0.90229235,97835.0,97834.0,0.00406534]
[1739624109418,0.98429235,97835.0,97834.0,0.00406534]
[1739624109632,0.98429235,97835.0,97834.0,0.00122365]
[1739624110055,0.98429235,97835.0,97834.0,0.00506534]
[1739624110361,0.98429235,97835.0,97834.0,0.15838534]
[1739624111005,0.98429235,97835.0,97834.0,0.00506534]
[1739624111743,0.98429235,97835.0,97834.0,0.15838534]
[1739624115982,0.90229235,97835.0,97834.0,0.15838534]
[1739624116776,0.90204235,97835.0,97834.0,0.15838534]
[1739624119147,0.90204235,97835.0,97834.0,0.00506534]
[1739624119325,1.18226135,97835.0,97834.0,0.00506534]
[1739624119480,1.18226135,97835.0,97834.0,0.00122365]
[1739624122961,1.18226135,97835.0,97834.0,0.00022365]
[1739624123408,1.18626135,97835.0,97834.0,0.00122365]
[1739624123617,1.18626135,97835.0,97834.0,0.00022365]
[1739624123812,1.18226135,97835.0,97834.0,0.00022365]
[1739624124034,1.10576135,97835.0,97834.0,0.00022365]
[1739624124250,1.11076135,97835.0,97834.0,0.00022365]
[1739624130390,1.18976135,97835.0,97834.0,0.00022365]
[1739624132035,1.18476135,97835.0,97834.0,0.00022365]
[1739624132454,1.18976135,97835.0,97834.0,0.00022365]
[1739624132631,1.18676135,97835.0,97834.0,0.00022365]
[1739624133006,1.19076135,97835.0,97834.0,0.00022365]
[1739624140386,1.293265,97835.0,97834.0,0.00022365]
[1739624155148,1.06436135,97835.0,97834.0,0.00022365]
[1739624169447,0.91104235,97835.0,97834.0,0.15354365]
[1739624169654,0.91104235,97835.0,97834.0,0.00022365]
[1739624169857,0.91104235,97835.0,97834.0,0.00409161]
[1739624170057,0.91104235,97835.0,97834.0,0.00022365]
[1739624170471,0.91104235,97835.0,97834.0,0.00409161]
[1739624172175,0.91104235,97835.0,97834.0,0.00022365]
[1739624172382,0.91104235,97835.0,97834.0,0.00409078]
[1739624173409,0.91104235,97835.0,97834.0,0.15741078]
[1739624173644,0.91104235,97835.0,97834.0,0.15354365]
[1739624173853,0.91104235,97835.0,97834.0,0.15741078]
[1739624176867,0.91104235,97835.0,97834.0,0.16765738]
[1739624178691,0.91104235,97835.0,97834.0,0.15741078]
[1739624180637,0.91104235,97835.0,97834.0,0.16740251]
[1739624181918,0.91104235,97835.0,97834.0,0.15741078]
[1739624182962,0.91104235,97835.0,97834.0,0.00409078]
[1739624183364,0.91104235,97835.0,97834.0,0.00022365]
[1739624183566,0.91104235,97835.0,97834.0,0.00409078]
[1739624188832,1.06436135,97835.0,97834.0,0.00409078]
[1739624189050,1.06436135,97835.0,97834.0,0.00022365]
[1739624189244,1.06436135,97835.0,97834.0,0.00409006]
[1739624190677,1.06436135,97835.0,97834.0,0.00022365]
[1739624190881,1.06436135,97835.0,97834.0,0.00409006]
[1739624192629,1.06436135,97835.0,97834.0,0.00022365]
[1739624196366,1.14106135,97835.0,97834.0,0.00022365]
[1739624201673,1.243565,97835.0,97834.0,0.00022365]
[1739624201918,1.290265,97835.0,97834.0,0.00022365]
[1739624202926,1.86596865,97835.0,97834.0,0.00022365]
[1739624203136,1.77380385,97835.0,97834.0,0.00022365]
[1739624203360,1.80570173,97835.0,97834.0,0.00022365]
[1739624204022,1.81570173,97835.0,97834.0,6.5e-07]
[1739624204239,0.586122,97833.0,97832.0,9.5e-07]
[1739624204483,0.72052353,97833.0,97832.0,9.5e-07]
[1739624204914,0.285558,97810.0,97785.0,0.2024]
[1739624205157,0.285558,97810.0,97773.0,0.16205252]
[1739624205158,0.86126165,97810.0,97773.0,0.16205252]
[1739624205325,0.86126165,97810.0,97776.0,0.153411]
[1739624205558,0.86126165,97810.0,97773.0,0.16205252]
[1739624205977,0.86126165,97810.0,97773.0,0.31546852]
[1739624206388,0.86826165,97810.0,97773.0,0.31546852]
[1739624206802,0.86826165,97810.0,97774.0,0.153414]
[1739624206991,0.86826165,97810.0,97775.0,0.153413]
[1739624207324,0.86826165,97810.0,97773.0,0.16205252]
[1739624207649,0.86826165,97810.0,97809.0,6.5e-07]
[1739624207856,0.91402361,97810.0,97809.0,6.5e-07]
[1739624208064,0.93702361,97810.0,97809.0,6.5e-07]
[1739624208271,0.94702361,97810.0,97809.0,6.5e-07]
[1739624208687,0.153391,97789.0,97773.0,0.08195252]
[1739624208899,0.58037319,97789.0,97773.0,0.08195252]
[1739624209107,0.57909465,97789.0,97772.0,0.00022365]
[1739624209979,0.57913804,97789.0,97772.0,0.00022365]
[1739624210854,0.58313804,97789.0,97772.0,0.00022365]
[1739624211293,0.57913804,97789.0,97772.0,0.00022365]
[1739624211444,0.58113804,97789.0,97772.0,0.00022365]
[1739624211657,0.58213804,97789.0,97772.0,0.00022365]
[1739624212091,0.58613804,97789.0,97772.0,0.00022365]
[1739624212317,0.57913804,97789.0,97772.0,0.00022365]
[1739624212522,0.58613804,97789.0,97772.0,0.00022365]
[1739624212828,0.59013804,97789.0,97772.0,0.00022365]
[1739624214088,0.58313804,97789.0,97772.0,0.00022365]
[1739624214251,0.58913804,97789.0,97772.0,0.00022365]
[1739624229397,0.33324339,97789.0,97781.0,0.0755]
[1739624229611,0.01004339,97789.0,97788.0,0.15361665]
[1739624229802,0.01004339,97789.0,97788.0,0.233293]
[1739624230424,0.00404339,97789.0,97788.0,0.233293]
[1739624231359,0.00504339,97789.0,97788.0,0.233293]
[1739624231601,0.00104339,97789.0,97788.0,0.233293]
[1739624232516,4.339e-05,97789.0,97788.0,0.233293]
[1739624232722,0.00104339,97789.0,97788.0,0.233293]
[1739624233479,0.00104339,97789.0,97788.0,0.0799]
[1739624235473,0.00104339,97789.0,97788.0,0.233293]
[1739624236046,0.00104339,97789.0,97788.0,0.0799]
[1739624237121,0.00104339,97789.0,97788.0,0.233293]
[1739624237516,0.00104339,97789.0,97788.0,0.0799]
[1739624238119,0.00104339,97789.0,97788.0,0.233293]
[1739624238482,0.00104339,97789.0,97788.0,0.0799]
[1739624239295,0.00104339,97789.0,97788.0,0.233293]
[1739624242855,0.00104339,97789.0,97788.0,0.0799]
[1739624243115,0.00104339,97789.0,97788.0,0.233293]
[1739624243657,0.00104339,97789.0,97788.0,0.0799]
[1739624244248,0.00104339,97789.0,97788.0,0.233293]
[1739624247143,0.15443439,97789.0,97788.0,0.0044]
[1739624247582,0.00104339,97789.0,97788.0,0.0044]
[1739624249195,0.15443439,97789.0,97788.0,0.0044]
[1739624249405,0.00104339,97789.0,97788.0,0.0044]
[1739624249749,0.00104339,97789.0,97788.0,0.00022365]
[1739624250140,0.00104339,97789.0,97788.0,0.00438894]
[1739624250351,0.00104339,97789.0,97788.0,0.00022365]
[1739624250646,0.00104339,97789.0,97788.0,0.00438894]
[1739624250768,0.00104339,97789.0,97788.0,0.15361665]
[1739624250974,0.00104339,97789.0,97788.0,0.15778194]
[1739624253242,0.00104339,97789.0,97788.0,0.33588559]
[1739624253466,0.00104339,97789.0,97788.0,0.38418559]
[1739624253688,0.00104339,97789.0,97788.0,0.53418559]
[1739624254537,4.339e-05,97789.0,97788.0,0.53418559]
[1739624255951,4.339e-05,97789.0,97788.0,0.55718559]
[1739624268933,4.339e-05,97789.0,97788.0,0.75962559]
[1739624278709,4.339e-05,97789.0,97788.0,0.45933259]
[1739624278915,4.339e-05,97789.0,97788.0,0.61272559]
[1739624279562,4.339e-05,97789.0,97788.0,0.20682894]
[1739624279772,0.15343439,97789.0,97788.0,0.20682894]
[1739624280399,0.15343439,97789.0,97788.0,0.20266365]
[1739624280808,0.15343439,97789.0,97788.0,0.20827044]
[1739624281276,0.23383439,97789.0,97788.0,0.20827044]
[1739624281481,0.27973439,97789.0,97788.0,0.20827044]
[1739624282592,0.28073439,97789.0,97788.0,0.20827044]
[1739624283037,0.27973439,97789.0,97788.0,0.20827044]